[Event "*** Titled Tuesday Blitz"]
[Site "Chess.com"]
[Date "2020.05.26"]
[Round "8"]
[White "eightbyeightchess"]
[Black "Tlerus"]
[Result "0-1"]
[WhiteElo "2448"]
[BlackElo "2586"]
[TimeControl "180+1"]
[EndTime "11:39:22 PDT"]
[Termination "Tlerus won by resignation"]

1. e4 {[%clk 0:03:00.9]} 1... d5 {[%clk 0:02:59.7]} 2. exd5 {[%clk 0:02:57.8]}
2... Nf6 {[%clk 0:02:59.5]} 3. Bb5+ {[%clk 0:02:55.5]} 3... Bd7 {[%clk
0:02:59.3]} 4. Bc4 {[%clk 0:02:55.2]} 4... Bg4 {[%clk 0:02:58.9]} 5. f3 {[%clk
0:02:54.7]} 5... Bf5 {[%clk 0:02:58.8]} 6. Nc3 {[%clk 0:02:51.8]} 6... Nbd7
{[%clk 0:02:58.7]} 7. d4 {[%clk 0:02:47.9]} 7... Nb6 {[%clk 0:02:58.2]} 8. Bb5+
{[%clk 0:02:44.3]} 8... Bd7 {[%clk 0:02:57.7]} 9. Bd3 {[%clk 0:02:43.5]} 9...
Nbxd5 {[%clk 0:02:51.1]} 10. Nge2 {[%clk 0:02:37.7]} 10... e6 {[%clk 0:02:43.1]}
11. Bg5 {[%clk 0:02:03]} 11... Be7 {[%clk 0:02:42.1]} 12. Qd2 {[%clk 0:01:57]}
12... Nb4 {[%clk 0:02:38]} 13. Bc4 {[%clk 0:01:52.3]} 13... a6 {[%clk 0:02:31]}
14. O-O-O {[%clk 0:01:29.8]} 14... b5 {[%clk 0:02:28]} 15. Bb3 {[%clk
0:01:29.5]} 15... a5 {[%clk 0:02:23.7]} 16. a3 {[%clk 0:00:50.5]} 16... a4
{[%clk 0:02:22.6]} 17. Ba2 {[%clk 0:00:44.6]} 17... Nxa2+ {[%clk 0:02:20.3]} 18.
Nxa2 {[%clk 0:00:45.5]} 18... O-O {[%clk 0:02:10.6]} 19. Bxf6 {[%clk 0:00:42.7]}
19... Bxf6 {[%clk 0:02:07.8]} 20. Nb4 {[%clk 0:00:39.1]} 20... Be7 {[%clk
0:02:05]} 21. d5 {[%clk 0:00:38]} 21... exd5 {[%clk 0:01:56.6]} 22. Qxd5 {[%clk
0:00:35.1]} 22... Bd6 {[%clk 0:01:41.9]} 23. Nc6 {[%clk 0:00:22.4]} 23... Bxc6
{[%clk 0:01:40.8]} 24. Qxc6 {[%clk 0:00:23.3]} 24... b4 {[%clk 0:01:41.3]} 25.
axb4 {[%clk 0:00:17.6]} 25... a3 {[%clk 0:01:39.7]} 26. bxa3 {[%clk 0:00:18.5]}
26... Rxa3 {[%clk 0:01:37.9]} 27. Kb2 {[%clk 0:00:18.5]} 27... Qf6+ {[%clk
0:01:24.8]} 28. Kxa3 {[%clk 0:00:15.7]} 28... Bxb4+ {[%clk 0:01:22.9]} 29. Kxb4
{[%clk 0:00:15]} 29... Qxc6 {[%clk 0:01:23.1]} 30. Nd4 {[%clk 0:00:15.9]} 30...
Rb8+ {[%clk 0:01:19.3]} 0-1

[Event "*** Titled Tuesday Blitz"]
[Site "Chess.com"]
[Date "2020.05.26"]
[Round "8"]
[White "CyberneticLion"]
[Black "Korchmar_Vasiliy"]
[Result "0-1"]
[WhiteElo "2443"]
[BlackElo "2576"]
[TimeControl "180+1"]
[EndTime "11:39:24 PDT"]
[Termination "Korchmar_Vasiliy won on time"]

1. e4 {[%clk 0:01:49.1]} 1... c5 {[%clk 0:02:59.2]} 2. c3 {[%clk 0:01:42.2]}
2... Nf6 {[%clk 0:02:58.2]} 3. e5 {[%clk 0:01:41]} 3... Nd5 {[%clk 0:02:58.6]}
4. d4 {[%clk 0:01:38.6]} 4... cxd4 {[%clk 0:02:59.5]} 5. cxd4 {[%clk 0:01:39]}
5... e6 {[%clk 0:03:00.1]} 6. Nf3 {[%clk 0:01:39.1]} 6... d6 {[%clk 0:03:00.4]}
7. Nc3 {[%clk 0:01:39]} 7... Nxc3 {[%clk 0:03:00.4]} 8. bxc3 {[%clk 0:01:38.7]}
8... Qc7 {[%clk 0:03:01.3]} 9. Bd2 {[%clk 0:01:38.1]} 9... Nd7 {[%clk 0:03:01]}
10. exd6 {[%clk 0:01:37.1]} 10... Bxd6 {[%clk 0:03:01.9]} 11. Bd3 {[%clk
0:01:37]} 11... O-O {[%clk 0:03:01.6]} 12. O-O {[%clk 0:01:37.6]} 12... b6
{[%clk 0:03:00.2]} 13. Ng5 {[%clk 0:01:35.1]} 13... Nf6 {[%clk 0:02:49.7]} 14.
h4 {[%clk 0:01:18]} 14... Bb7 {[%clk 0:02:46.9]} 15. h5 {[%clk 0:01:18]} 15...
h6 {[%clk 0:02:40.6]} 16. Nh3 {[%clk 0:01:18.1]} 16... e5 {[%clk 0:02:29.9]} 17.
Rc1 {[%clk 0:01:03.7]} 17... Rad8 {[%clk 0:02:11.2]} 18. f4 {[%clk 0:00:44.8]}
18... exd4 {[%clk 0:01:59.4]} 19. cxd4 {[%clk 0:00:42.7]} 19... Qd7 {[%clk
0:02:00]} 20. f5 {[%clk 0:00:35.5]} 20... Ba3 {[%clk 0:01:54]} 21. Rc3 {[%clk
0:00:20.3]} 21... Qxd4+ {[%clk 0:01:40.6]} 22. Nf2 {[%clk 0:00:19.6]} 22... Bc5
{[%clk 0:01:33.9]} 23. Rb3 {[%clk 0:00:07]} 23... Qh4 {[%clk 0:01:33.7]} 24. Be2
{[%clk 0:00:04.4]} 24... Ne4 {[%clk 0:01:24.5]} 25. Rh3 {[%clk 0:00:01.8]} 25...
Nxf2 {[%clk 0:01:21.5]} 0-1

[Event "*** Titled Tuesday Blitz"]
[Site "Chess.com"]
[Date "2020.05.26"]
[Round "8"]
[White "LiverpooL174"]
[Black "zmeeed67"]
[Result "1-0"]
[WhiteElo "2672"]
[BlackElo "2456"]
[TimeControl "180+1"]
[EndTime "11:39:25 PDT"]
[Termination "LiverpooL174 won by checkmate"]

1. Nf3 {[%clk 0:03:00.9]} 1... d5 {[%clk 0:02:59.6]} 2. b3 {[%clk 0:03:01.4]}
2... Nf6 {[%clk 0:02:59.3]} 3. Bb2 {[%clk 0:03:02]} 3... g6 {[%clk 0:02:59.3]}
4. e3 {[%clk 0:03:02.6]} 4... Bg7 {[%clk 0:02:59.6]} 5. c4 {[%clk 0:03:03.5]}
5... c6 {[%clk 0:02:53.7]} 6. Be2 {[%clk 0:03:03.9]} 6... O-O {[%clk 0:02:53.6]}
7. O-O {[%clk 0:03:04.3]} 7... a5 {[%clk 0:02:53]} 8. d4 {[%clk 0:03:02.9]} 8...
Bf5 {[%clk 0:02:48.8]} 9. Nc3 {[%clk 0:03:01.9]} 9... Ne4 {[%clk 0:02:37]} 10.
Rc1 {[%clk 0:03:02]} 10... Na6 {[%clk 0:02:21.5]} 11. Na4 {[%clk 0:03:01.9]}
11... Nd6 {[%clk 0:02:06.5]} 12. cxd5 {[%clk 0:03:01.7]} 12... cxd5 {[%clk
0:02:07.4]} 13. Ne5 {[%clk 0:03:00.3]} 13... Rc8 {[%clk 0:01:24.4]} 14. Bxa6
{[%clk 0:02:54.6]} 14... bxa6 {[%clk 0:01:23.4]} 15. Qe2 {[%clk 0:02:53.8]}
15... Nb5 {[%clk 0:01:12.4]} 16. Rxc8 {[%clk 0:02:49]} 16... Qxc8 {[%clk
0:01:13.3]} 17. Rc1 {[%clk 0:02:49.5]} 17... Qd8 {[%clk 0:00:54.6]} 18. Nc5
{[%clk 0:02:47.5]} 18... Qd6 {[%clk 0:00:42]} 19. a4 {[%clk 0:02:42.6]} 19...
Nc7 {[%clk 0:00:41.4]} 20. Qd2 {[%clk 0:02:43.1]} 20... f6 {[%clk 0:00:30.6]}
21. Nf3 {[%clk 0:02:37.2]} 21... e5 {[%clk 0:00:30.8]} 22. dxe5 {[%clk
0:02:34.2]} 22... fxe5 {[%clk 0:00:31.7]} 23. Qxa5 {[%clk 0:02:31.9]} 23... Bg4
{[%clk 0:00:20.7]} 24. Ng5 {[%clk 0:02:22.8]} 24... Qf6 {[%clk 0:00:13.5]} 25.
f4 {[%clk 0:02:19.8]} 25... Qe7 {[%clk 0:00:04.9]} 26. Nce4 {[%clk 0:02:12.7]}
26... Ne6 {[%clk 0:00:03.2]} 27. Nxe6 {[%clk 0:02:05.5]} 27... Qxe6 {[%clk
0:00:04.1]} 28. Ng5 {[%clk 0:02:06.2]} 28... Qd7 {[%clk 0:00:03.5]} 29. Rc7
{[%clk 0:02:05.8]} 29... Qf5 {[%clk 0:00:02.8]} 30. Rxg7+ {[%clk 0:02:02.1]}
30... Kxg7 {[%clk 0:00:02.5]} 31. Bxe5+ {[%clk 0:02:02.7]} 31... Kh6 {[%clk
0:00:02]} 32. h3 {[%clk 0:01:59.5]} 32... Qb1+ {[%clk 0:00:01.9]} 33. Kh2 {[%clk
0:01:59.7]} 33... Be2 {[%clk 0:00:01.6]} 34. Qd2 {[%clk 0:01:56.5]} 34... Qf1
{[%clk 0:00:01.6]} 35. Qxd5 {[%clk 0:01:52]} 35... Bd3 {[%clk 0:00:01.8]} 36.
Qd7 {[%clk 0:01:47.1]} 36... Rf5 {[%clk 0:00:01.7]} 37. Qxh7# {[%clk 0:01:47]}
1-0

[Event "*** Titled Tuesday Blitz"]
[Site "Chess.com"]
[Date "2020.05.26"]
[Round "8"]
[White "Witik"]
[Black "nikitakhoroshev"]
[Result "1-0"]
[WhiteElo "2659"]
[BlackElo "2446"]
[TimeControl "180+1"]
[EndTime "11:39:29 PDT"]
[Termination "Witik won by resignation"]

1. d4 {[%clk 0:03:00.9]} 1... Nf6 {[%clk 0:02:59.2]} 2. c4 {[%clk 0:03:01]} 2...
d6 {[%clk 0:02:58.2]} 3. Nc3 {[%clk 0:03:00.3]} 3... e5 {[%clk 0:02:57.8]} 4.
Nf3 {[%clk 0:03:00.2]} 4... Nbd7 {[%clk 0:02:57]} 5. e4 {[%clk 0:03:00.1]} 5...
Be7 {[%clk 0:02:56.3]} 6. Be2 {[%clk 0:03:00.4]} 6... O-O {[%clk 0:02:55.9]} 7.
O-O {[%clk 0:03:00.9]} 7... c6 {[%clk 0:02:55.5]} 8. Re1 {[%clk 0:03:01.3]} 8...
a6 {[%clk 0:02:53.9]} 9. Bf1 {[%clk 0:03:01.1]} 9... b5 {[%clk 0:02:45.9]} 10.
a3 {[%clk 0:03:01.4]} 10... Bb7 {[%clk 0:02:44.9]} 11. b4 {[%clk 0:02:58.4]}
11... Re8 {[%clk 0:02:41.7]} 12. Bb2 {[%clk 0:02:48.8]} 12... Bf8 {[%clk
0:02:41]} 13. a4 {[%clk 0:02:41.5]} 13... bxc4 {[%clk 0:02:32.9]} 14. Bxc4
{[%clk 0:02:29.7]} 14... exd4 {[%clk 0:02:32]} 15. Qxd4 {[%clk 0:02:19.7]} 15...
c5 {[%clk 0:02:29.8]} 16. bxc5 {[%clk 0:02:19.8]} 16... dxc5 {[%clk 0:02:19.3]}
17. Bxf7+ {[%clk 0:01:58.2]} 17... Kxf7 {[%clk 0:02:11.9]} 18. Qc4+ {[%clk
0:01:57.1]} 18... Kg6 {[%clk 0:01:57.7]} 19. Nh4+ {[%clk 0:01:49]} 19... Kh5
{[%clk 0:01:47.4]} 20. Qf7+ {[%clk 0:01:17.2]} 20... g6 {[%clk 0:01:39.6]} 21.
Nxg6 {[%clk 0:01:03.7]} 21... hxg6 {[%clk 0:01:34.2]} 22. Re3 {[%clk 0:01:03.5]}
22... Bd6 {[%clk 0:01:03.6]} 23. Rh3+ {[%clk 0:01:00.8]} 23... Kg5 {[%clk
0:01:03.7]} 24. Bc1+ {[%clk 0:00:49]} 24... Bf4 {[%clk 0:01:03.8]} 25. Rg3+
{[%clk 0:00:36.2]} 25... Kh5 {[%clk 0:00:46.9]} 26. Qxg6+ {[%clk 0:00:35.5]} 1-0

[Event "*** Titled Tuesday Blitz"]
[Site "Chess.com"]
[Date "2020.05.26"]
[Round "8"]
[White "Lagravesamuell"]
[Black "Spartakus1975"]
[Result "0-1"]
[WhiteElo "2476"]
[BlackElo "2687"]
[TimeControl "180+1"]
[EndTime "11:39:30 PDT"]
[Termination "Spartakus1975 won by resignation"]

1. d4 {[%clk 0:02:55.2]} 1... d5 {[%clk 0:02:59]} 2. c4 {[%clk 0:02:55.4]} 2...
c6 {[%clk 0:02:57.2]} 3. cxd5 {[%clk 0:02:55.3]} 3... cxd5 {[%clk 0:02:56.4]} 4.
Bf4 {[%clk 0:02:55.8]} 4... Nc6 {[%clk 0:02:55.7]} 5. e3 {[%clk 0:02:56.4]} 5...
Bf5 {[%clk 0:02:51.2]} 6. Nc3 {[%clk 0:02:55.9]} 6... e6 {[%clk 0:02:50.5]} 7.
Qb3 {[%clk 0:02:48.9]} 7... Qd7 {[%clk 0:02:50.5]} 8. Nf3 {[%clk 0:02:47.8]}
8... f6 {[%clk 0:02:50.6]} 9. h3 {[%clk 0:02:39.1]} 9... Nge7 {[%clk 0:02:47.9]}
10. g4 {[%clk 0:02:38.3]} 10... Bg6 {[%clk 0:02:44.6]} 11. g5 {[%clk 0:02:34.4]}
11... fxg5 {[%clk 0:02:31.7]} 12. Bxg5 {[%clk 0:02:31.1]} 12... Nf5 {[%clk
0:02:30.3]} 13. Bb5 {[%clk 0:02:21.2]} 13... Bd6 {[%clk 0:02:29.7]} 14. h4
{[%clk 0:01:36.5]} 14... Bh5 {[%clk 0:02:23.3]} 15. Be2 {[%clk 0:01:23.6]} 15...
O-O {[%clk 0:02:16.5]} 16. O-O-O {[%clk 0:01:05.3]} 16... Bxf3 {[%clk
0:02:06.1]} 17. Bxf3 {[%clk 0:01:04.8]} 17... Nfxd4 {[%clk 0:02:06.3]} 18. exd4
{[%clk 0:00:54.2]} 18... Rxf3 {[%clk 0:02:05.8]} 19. Be3 {[%clk 0:00:54.1]}
19... Na5 {[%clk 0:02:01.2]} 20. Qc2 {[%clk 0:00:47.3]} 20... Nc4 {[%clk
0:02:00.8]} 21. Qe2 {[%clk 0:00:44.5]} 21... Rf7 {[%clk 0:01:55.5]} 22. h5
{[%clk 0:00:40.8]} 22... Rc8 {[%clk 0:01:54.6]} 23. Kb1 {[%clk 0:00:39.6]} 23...
b5 {[%clk 0:01:52.7]} 24. Qg4 {[%clk 0:00:36.5]} 24... b4 {[%clk 0:01:51]} 25.
Ne2 {[%clk 0:00:36]} 25... a5 {[%clk 0:01:32.1]} 26. Bf4 {[%clk 0:00:20.7]}
26... a4 {[%clk 0:01:28.4]} 27. Bxd6 {[%clk 0:00:20.2]} 27... Qxd6 {[%clk
0:01:28.4]} 28. f4 {[%clk 0:00:19.2]} 28... b3 {[%clk 0:01:28.1]} 29. Rc1 {[%clk
0:00:17.3]} 29... bxa2+ {[%clk 0:01:22.8]} 30. Kxa2 {[%clk 0:00:17.8]} 30... Rb7
{[%clk 0:01:20.8]} 31. Rc2 {[%clk 0:00:17.3]} 31... Rxb2+ {[%clk 0:01:20.5]} 32.
Rxb2 {[%clk 0:00:17.3]} 32... Qa3+ {[%clk 0:01:20.9]} 0-1

[Event "*** Titled Tuesday Blitz"]
[Site "Chess.com"]
[Date "2020.05.26"]
[Round "8"]
[White "Borsuk_Konstantin"]
[Black "letsgoband"]
[Result "0-1"]
[WhiteElo "2593"]
[BlackElo "2418"]
[TimeControl "180+1"]
[EndTime "11:39:33 PDT"]
[Termination "letsgoband won on time"]

1. d4 {[%clk 0:03:00.9]} 1... Nf6 {[%clk 0:02:39.7]} 2. c4 {[%clk 0:03:00.6]}
2... g6 {[%clk 0:02:39.7]} 3. Nc3 {[%clk 0:03:00.7]} 3... Bg7 {[%clk 0:02:40.1]}
4. e4 {[%clk 0:02:59.9]} 4... d6 {[%clk 0:02:40.7]} 5. f3 {[%clk 0:02:59]} 5...
O-O {[%clk 0:02:40.7]} 6. Be3 {[%clk 0:02:59.6]} 6... c5 {[%clk 0:02:40.5]} 7.
dxc5 {[%clk 0:02:57.5]} 7... dxc5 {[%clk 0:02:40.8]} 8. Qxd8 {[%clk 0:02:56.3]}
8... Rxd8 {[%clk 0:02:41.7]} 9. Bxc5 {[%clk 0:02:56.3]} 9... Nc6 {[%clk
0:02:42.3]} 10. Nd5 {[%clk 0:02:56.4]} 10... Be6 {[%clk 0:02:19.3]} 11. O-O-O
{[%clk 0:02:21.5]} 11... Bxd5 {[%clk 0:02:15.5]} 12. exd5 {[%clk 0:02:10.9]}
12... b6 {[%clk 0:02:04.8]} 13. Ba3 {[%clk 0:01:56.9]} 13... Na5 {[%clk
0:02:03.7]} 14. Bxe7 {[%clk 0:01:54.4]} 14... Rdc8 {[%clk 0:02:04.1]} 15. b3
{[%clk 0:01:46.8]} 15... Nd7 {[%clk 0:02:01.2]} 16. Kb1 {[%clk 0:01:32.9]} 16...
a6 {[%clk 0:01:53.4]} 17. Nh3 {[%clk 0:01:07.1]} 17... b5 {[%clk 0:01:52.4]} 18.
cxb5 {[%clk 0:01:05.9]} 18... Nxb3 {[%clk 0:01:52.6]} 19. b6 {[%clk 0:00:15.3]}
19... Na5 {[%clk 0:01:43.6]} 20. Bb4 {[%clk 0:00:13.8]} 20... Nxb6 {[%clk
0:01:33.2]} 21. Bxa5 {[%clk 0:00:12.1]} 21... Na4 {[%clk 0:01:33.2]} 22. Rd3
{[%clk 0:00:11.6]} 22... Rc5 {[%clk 0:01:23.8]} 23. Bd2 {[%clk 0:00:09.8]} 23...
Rb5+ {[%clk 0:01:16.4]} 24. Rb3 {[%clk 0:00:09.4]} 24... Rxd5 {[%clk 0:01:16.9]}
25. Kc2 {[%clk 0:00:04.5]} 25... Rc8+ {[%clk 0:01:15.9]} 26. Kd1 {[%clk
0:00:04.7]} 26... Nc3+ {[%clk 0:01:14.2]} 27. Kc2 {[%clk 0:00:03.5]} 27... Ne4+
{[%clk 0:01:13]} 0-1

[Event "*** Titled Tuesday Blitz"]
[Site "Chess.com"]
[Date "2020.05.26"]
[Round "8"]
[White "witcher8"]
[Black "vinniethepooh"]
[Result "1-0"]
[WhiteElo "2443"]
[BlackElo "2557"]
[TimeControl "180+1"]
[EndTime "11:39:34 PDT"]
[Termination "witcher8 won by resignation"]

1. e4 {[%clk 0:03:00.9]} 1... c5 {[%clk 0:02:59.8]} 2. Nf3 {[%clk 0:02:59.3]}
2... d6 {[%clk 0:02:59.6]} 3. d4 {[%clk 0:02:59.2]} 3... cxd4 {[%clk 0:03:00.5]}
4. Nxd4 {[%clk 0:02:59.9]} 4... Nf6 {[%clk 0:03:00.9]} 5. Nc3 {[%clk 0:02:59.6]}
5... a6 {[%clk 0:03:01.5]} 6. Be3 {[%clk 0:02:58.1]} 6... e5 {[%clk 0:03:00.9]}
7. Nb3 {[%clk 0:02:57.9]} 7... Be7 {[%clk 0:03:01.4]} 8. f3 {[%clk 0:02:54.2]}
8... O-O {[%clk 0:03:01.3]} 9. Qd2 {[%clk 0:02:54.5]} 9... Be6 {[%clk
0:03:01.7]} 10. O-O-O {[%clk 0:02:54.3]} 10... Nbd7 {[%clk 0:03:02.2]} 11. g4
{[%clk 0:02:52.2]} 11... b5 {[%clk 0:03:02.6]} 12. g5 {[%clk 0:02:51.3]} 12...
b4 {[%clk 0:03:03.1]} 13. gxf6 {[%clk 0:02:49.8]} 13... bxc3 {[%clk 0:03:03.1]}
14. Qxc3 {[%clk 0:02:47.8]} 14... Nxf6 {[%clk 0:03:03.5]} 15. Na5 {[%clk
0:02:45.3]} 15... Rc8 {[%clk 0:03:03.8]} 16. Nc6 {[%clk 0:02:44.6]} 16... Qe8
{[%clk 0:03:04.3]} 17. Nxe7+ {[%clk 0:02:44.6]} 17... Qxe7 {[%clk 0:03:05.2]}
18. Qa5 {[%clk 0:02:45.4]} 18... Rc6 {[%clk 0:02:58]} 19. Rg1 {[%clk 0:01:50.8]}
19... Rfc8 {[%clk 0:02:53.4]} 20. Rg2 {[%clk 0:01:37.1]} 20... Nh5 {[%clk
0:02:36.4]} 21. Rgd2 {[%clk 0:01:33.3]} 21... h6 {[%clk 0:02:27.6]} 22. Kb1
{[%clk 0:01:28.5]} 22... Kh7 {[%clk 0:02:23.8]} 23. Qa3 {[%clk 0:01:04.9]} 23...
Qf6 {[%clk 0:02:18.5]} 24. Be2 {[%clk 0:01:02.3]} 24... Nf4 {[%clk 0:02:17.6]}
25. Bf1 {[%clk 0:00:55.9]} 25... Ng6 {[%clk 0:02:15.9]} 26. Be2 {[%clk
0:00:55.2]} 26... Nf4 {[%clk 0:02:13.4]} 27. Bf1 {[%clk 0:00:55]} 27... Nh5
{[%clk 0:01:56.7]} 28. Be2 {[%clk 0:00:54.3]} 28... g5 {[%clk 0:01:51.6]} 29. c3
{[%clk 0:00:50.5]} 29... Nf4 {[%clk 0:01:49]} 30. Bf1 {[%clk 0:00:50.5]} 30...
Ng6 {[%clk 0:01:47.9]} 31. Be2 {[%clk 0:00:50.9]} 31... Rd8 {[%clk 0:01:46.1]}
32. c4 {[%clk 0:00:44]} 32... Bxc4 {[%clk 0:01:40.2]} 33. Bxc4 {[%clk
0:00:44.9]} 33... Rxc4 {[%clk 0:01:41.1]} 34. Bb6 {[%clk 0:00:41.9]} 34... Rdc8
{[%clk 0:01:35.9]} 35. Rxd6 {[%clk 0:00:37.1]} 35... Qxf3 {[%clk 0:01:35.3]} 36.
Qxf3 {[%clk 0:00:35.9]} 1-0

[Event "*** Titled Tuesday Blitz"]
[Site "Chess.com"]
[Date "2020.05.26"]
[Round "8"]
[White "FMOlexandrProhorov"]
[Black "chesslh19"]
[Result "1/2-1/2"]
[WhiteElo "2070"]
[BlackElo "2160"]
[TimeControl "180+1"]
[EndTime "11:39:43 PDT"]
[Termination "Game drawn by agreement"]

1. e4 {[%clk 0:03:00.9]} 1... c5 {[%clk 0:02:59.2]} 2. c3 {[%clk 0:02:59]} 2...
Nf6 {[%clk 0:02:57.4]} 3. e5 {[%clk 0:02:58.7]} 3... Nd5 {[%clk 0:02:58]} 4. Nf3
{[%clk 0:02:59.1]} 4... d6 {[%clk 0:02:57.3]} 5. Bc4 {[%clk 0:02:59.5]} 5... Nb6
{[%clk 0:02:53.1]} 6. Bb3 {[%clk 0:03:00]} 6... Nc6 {[%clk 0:02:39.7]} 7. exd6
{[%clk 0:02:48.3]} 7... e6 {[%clk 0:02:29.8]} 8. d4 {[%clk 0:02:45.7]} 8... cxd4
{[%clk 0:02:26.8]} 9. Nxd4 {[%clk 0:02:45.8]} 9... Nxd4 {[%clk 0:02:22.8]} 10.
Qxd4 {[%clk 0:02:46.4]} 10... Qxd6 {[%clk 0:02:20.4]} 11. Qg4 {[%clk 0:02:35.1]}
11... Qd3 {[%clk 0:02:10]} 12. Bd1 {[%clk 0:02:10.2]} 12... Qg6 {[%clk
0:02:03.9]} 13. Qf3 {[%clk 0:02:08.1]} 13... Be7 {[%clk 0:01:49.2]} 14. O-O
{[%clk 0:02:08]} 14... O-O {[%clk 0:01:49.7]} 15. Nd2 {[%clk 0:02:00.6]} 15...
Nd5 {[%clk 0:01:29.1]} 16. Bb3 {[%clk 0:01:54.1]} 16... Bd7 {[%clk 0:01:23.5]}
17. Ne4 {[%clk 0:01:49.5]} 17... Bc6 {[%clk 0:01:21.2]} 18. Qe2 {[%clk
0:01:43.4]} 18... Nf6 {[%clk 0:01:08]} 19. Ng3 {[%clk 0:01:40.7]} 19... Ne4
{[%clk 0:00:59.3]} 20. Bc2 {[%clk 0:01:36]} 20... Nxg3 {[%clk 0:00:53.1]} 21.
hxg3 {[%clk 0:01:36.9]} 21... Qf6 {[%clk 0:00:43.3]} 22. Be3 {[%clk 0:01:33.7]}
22... Qe5 {[%clk 0:00:37]} 23. Rfe1 {[%clk 0:01:30.3]} 23... Bf6 {[%clk
0:00:25.3]} 24. Rad1 {[%clk 0:01:27.5]} 24... b6 {[%clk 0:00:20.5]} 25. Qc4
{[%clk 0:01:19.7]} 25... Bd5 {[%clk 0:00:15.9]} 26. Qa4 {[%clk 0:01:14.8]} 26...
Qc7 {[%clk 0:00:11.1]} 27. Bf4 {[%clk 0:01:14.1]} 27... Qc6 {[%clk 0:00:09.7]}
28. f3 {[%clk 0:01:12.9]} 28... Qxa4 {[%clk 0:00:09.1]} 29. Bxa4 {[%clk
0:01:12.5]} 29... Bxa2 {[%clk 0:00:09.7]} 1/2-1/2

[Event "*** Titled Tuesday Blitz"]
[Site "Chess.com"]
[Date "2020.05.26"]
[Round "8"]
[White "Caterpiller35"]
[Black "Artem_Sadovsky"]
[Result "0-1"]
[WhiteElo "2293"]
[BlackElo "2525"]
[TimeControl "180+1"]
[EndTime "11:39:44 PDT"]
[Termination "Artem_Sadovsky won on time"]

1. d4 {[%clk 0:02:59.8]} 1... g6 {[%clk 0:02:59.9]} 2. e4 {[%clk 0:02:59.4]}
2... Bg7 {[%clk 0:03:00.8]} 3. Nc3 {[%clk 0:02:59.3]} 3... d6 {[%clk 0:03:00.8]}
4. Be3 {[%clk 0:02:58.7]} 4... e5 {[%clk 0:03:00.5]} 5. Nge2 {[%clk 0:02:56.5]}
5... Nc6 {[%clk 0:03:00.2]} 6. Qd2 {[%clk 0:02:54.2]} 6... f5 {[%clk 0:03:00.5]}
7. exf5 {[%clk 0:02:51.9]} 7... Bxf5 {[%clk 0:03:01.4]} 8. O-O-O {[%clk
0:02:49.7]} 8... Nf6 {[%clk 0:02:58.2]} 9. h3 {[%clk 0:02:42.3]} 9... h5 {[%clk
0:02:55.9]} 10. dxe5 {[%clk 0:02:38.2]} 10... Nxe5 {[%clk 0:02:55.8]} 11. Ng3
{[%clk 0:02:37.9]} 11... Be6 {[%clk 0:02:46.9]} 12. f4 {[%clk 0:02:36]} 12...
Nc4 {[%clk 0:02:47.3]} 13. Bxc4 {[%clk 0:02:27.1]} 13... Bxc4 {[%clk 0:02:48.2]}
14. f5 {[%clk 0:02:24.5]} 14... h4 {[%clk 0:02:45.7]} 15. Qd4 {[%clk 0:02:00.4]}
15... b5 {[%clk 0:01:51.6]} 16. Rhe1 {[%clk 0:00:49.5]} 16... hxg3 {[%clk
0:01:45.8]} 17. Bg5+ {[%clk 0:00:43.9]} 17... Kf7 {[%clk 0:01:31]} 18. Ne4
{[%clk 0:00:12.6]} 18... Nxe4 {[%clk 0:01:19.1]} 19. Qxe4 {[%clk 0:00:09.3]}
19... Qxg5+ {[%clk 0:01:18.3]} 20. Kb1 {[%clk 0:00:09.2]} 20... gxf5 {[%clk
0:01:07.2]} 21. Qc6 {[%clk 0:00:03.5]} 21... Rae8 {[%clk 0:00:58.8]} 0-1

[Event "*** Titled Tuesday Blitz"]
[Site "Chess.com"]
[Date "2020.05.26"]
[Round "8"]
[White "gumimis"]
[Black "atwalcb"]
[Result "0-1"]
[WhiteElo "2189"]
[BlackElo "2380"]
[TimeControl "180+1"]
[EndTime "11:39:47 PDT"]
[Termination "atwalcb won by resignation"]

1. e4 {[%clk 0:03:00.8]} 1... d6 {[%clk 0:03:00.4]} 2. d4 {[%clk 0:03:00.4]}
2... Nf6 {[%clk 0:03:00.3]} 3. Nc3 {[%clk 0:03:00.3]} 3... Nbd7 {[%clk
0:03:00.4]} 4. Nf3 {[%clk 0:02:57.3]} 4... e5 {[%clk 0:03:00.5]} 5. Rg1 {[%clk
0:02:56]} 5... c6 {[%clk 0:02:44.2]} 6. g4 {[%clk 0:02:55.1]} 6... h6 {[%clk
0:02:43.9]} 7. h4 {[%clk 0:02:53.6]} 7... exd4 {[%clk 0:02:33]} 8. Nxd4 {[%clk
0:02:52.1]} 8... Ne5 {[%clk 0:02:32.3]} 9. f3 {[%clk 0:02:40.4]} 9... Ng6 {[%clk
0:01:42.7]} 10. g5 {[%clk 0:02:10.7]} 10... hxg5 {[%clk 0:01:39.9]} 11. hxg5
{[%clk 0:02:10]} 11... Nh5 {[%clk 0:01:36.6]} 12. Be3 {[%clk 0:01:57.9]} 12...
Nh4 {[%clk 0:01:07.6]} 13. Rh1 {[%clk 0:01:48.7]} 13... Ng3 {[%clk 0:01:00.7]}
14. Rg1 {[%clk 0:01:41.6]} 14... Nxf1 {[%clk 0:00:58.2]} 15. Rxf1 {[%clk
0:01:42]} 15... Ng2+ {[%clk 0:00:56.2]} 16. Kd2 {[%clk 0:01:40.3]} 16... Nxe3
{[%clk 0:00:57.1]} 17. Kxe3 {[%clk 0:01:40.1]} 17... Qxg5+ {[%clk 0:00:57.3]}
18. Kd3 {[%clk 0:01:40.3]} 18... g6 {[%clk 0:00:46.8]} 19. Qe2 {[%clk
0:01:32.2]} 19... Bg7 {[%clk 0:00:43.7]} 20. Qf2 {[%clk 0:01:26]} 20... Qc5
{[%clk 0:00:35.5]} 21. Rad1 {[%clk 0:01:16.4]} 21... b6 {[%clk 0:00:30.8]} 22.
Ke2 {[%clk 0:00:56]} 22... Ba6+ {[%clk 0:00:28]} 23. Ke1 {[%clk 0:00:49.6]}
23... Bxf1 {[%clk 0:00:26.6]} 24. Kxf1 {[%clk 0:00:47.1]} 24... Rh1+ {[%clk
0:00:25.8]} 25. Ke2 {[%clk 0:00:47.7]} 25... Rxd1 {[%clk 0:00:25.4]} 26. Kxd1
{[%clk 0:00:46.6]} 26... Qxd4+ {[%clk 0:00:25]} 27. Qxd4 {[%clk 0:00:46.7]}
27... Bxd4 {[%clk 0:00:25.9]} 0-1